fUSD/lending_fUSD_20260601
["ID","MTS","AMOUNT","RATE_DAILY","PERIOD"]
[423616023,1780260659000,-5000.0,0.00038566,2]
[423616033,1780260659000,-292.94,0.00038665,30]
[423616019,1780260659000,-2420.64172213,0.0003854,10]
[423616028,1780260659000,-250.0,0.00038566,2]
[423616026,1780260659000,-250.0,0.00038566,2]
[423616038,1780260659000,-304.826272,0.000388,2]
[423616037,1780260659000,-1001.0,0.00038795,7]
[423616027,1780260659000,-250.0,0.00038566,2]
[423616029,1780260659000,-250.0,0.00038566,2]
[423616036,1780260659000,-1800.00396,0.000387,120]
[423616031,1780260659000,-152.0,0.000386,120]
[423616034,1780260659000,-350.0,0.00038675,10]
[423616030,1780260659000,-1250.0,0.00038578,2]
[423616012,1780260659000,-2420.64172213,0.0003854,10]
[423616017,1780260659000,-2420.64172213,0.0003854,10]
[423616009,1780260659000,-2420.64172225,0.0003854,10]
[423615989,1780260659000,-150.0,0.0003842,30]
[423616010,1780260659000,-2420.64172213,0.0003854,10]
[423615980,1780260659000,-453.541394,0.00038356,30]
[423615981,1780260659000,-151.0,0.00038356,30]
[423615984,1780260659000,-2000.0,0.00038379,105]
[423615979,1780260659000,-453.541394,0.00038356,30]
[423616032,1780260659000,-2350.0309,0.0003864,30]
[423615986,1780260659000,-458.55,0.000384,120]
[423615988,1780260659000,-221.0,0.000384,120]
[423615983,1780260659000,-150.0,0.00038361,120]
[423615982,1780260659000,-151.0,0.00038356,30]
[423615987,1780260659000,-501.12,0.000384,120]
[423615985,1780260659000,-375.05,0.0003838,105]
[423615991,1780260659000,-150.0,0.0003842,30]
[423616001,1780260659000,-1084.20893947,0.00038514,20]
[423615990,1780260659000,-2849.85177406,0.0003842,30]
[423615997,1780260659000,-3347.22,0.000385,14]
[423615994,1780260659000,-1286.62,0.00038495,10]
[423615992,1780260659000,-1703.87007754,0.0003842,30]
[423615995,1780260659000,-150.72,0.00038495,10]
[423616000,1780260659000,-1079.44620739,0.00038514,20]
[423615993,1780260659000,-510.84206724,0.00038429,90]
[423615996,1780260659000,-2000.0,0.00038499,48]
[423615999,1780260659000,-1035.98623026,0.00038514,20]
[423616002,1780260659000,-1021.21311191,0.00038514,20]
[423616004,1780260659000,-1114.888195,0.00038514,20]
[423616005,1780260659000,-1017.38843981,0.00038514,20]
[423616008,1780260659000,-1000.0,0.00038524,90]
[423616003,1780260659000,-1100.00353826,0.00038514,20]
[423616011,1780260659000,-2420.64172213,0.0003854,10]
[423616035,1780260659000,-2319.0,0.00038677,11]
[423615998,1780260659000,-1200.0,0.0003851,60]
[423616043,1780260659000,-221.0,0.000388,120]
[423616073,1780260659000,-629.45911,0.0003894,107]
[423616070,1780260659000,-629.45911,0.0003894,107]
[423616086,1780260659000,-1459.0,0.00039,7]
[423616076,1780260659000,-200.0,0.00038955,20]
[423616087,1780260659000,-3198.0,0.00039,120]
[423616082,1780260659000,-250.0,0.00038964,2]
[423616096,1780260659000,-2160.02052502,0.00039022,2]
[423616081,1780260659000,-250.0,0.00038964,2]
[423616080,1780260659000,-250.0,0.00038964,2]
[423616078,1780260659000,-5000.0,0.00038964,2]
[423616084,1780260659000,-7193.59,0.00038986,2]
[423616075,1780260659000,-350.0,0.00038954,10]
[423616079,1780260659000,-5000.0,0.00038964,2]
[423616077,1780260659000,-5000.0,0.00038964,2]
[423616085,1780260659000,-2000.0,0.00038999,60]
[423616083,1780260659000,-350.0,0.00038965,8]
[423616089,1780260659000,-386.0,0.00039011,2]
[423616090,1780260659000,-2341.37646919,0.00039013,2]
[423616091,1780260659000,-2529.8058123,0.00039013,2]
[423616097,1780260659000,-175.28622889,0.00039022,120]
[423616098,1780260659000,-2000.0,0.00039025,90]
[423616095,1780260659000,-386.0,0.00039013,2]
[423616094,1780260659000,-1425.33417843,0.00039013,2]
[423616093,1780260659000,-2074.83975922,0.00039013,2]
[423616092,1780260659000,-2431.10654618,0.00039013,2]
[423616099,1780260659000,-150.0,0.00039026,2]
[423616040,1780260659000,-301.826273,0.000388,2]
[423616072,1780260659000,-629.45911,0.0003894,107]
[423616071,1780260659000,-629.45911,0.0003894,107]
[423616088,1780260659000,-386.0,0.00039002,2]
[423616067,1780260659000,-2000.0,0.00038939,107]
[423616069,1780260659000,-629.45911,0.0003894,107]
[423616039,1780260659000,-313.826274,0.000388,2]
[423616041,1780260659000,-298.826273,0.000388,2]
[423616042,1780260659000,-304.826273,0.000388,2]
[423616046,1780260659000,-201.41087107,0.00038849,120]
[423616045,1780260659000,-446.47496327,0.00038849,120]
[423616047,1780260659000,-1989.08,0.0003885,120]
[423616044,1780260659000,-2110.0,0.00038832,2]
[423616048,1780260659000,-550.8,0.0003885,120]
[423616051,1780260659000,-14584.0,0.00038877,120]
[423616050,1780260659000,-2319.0,0.00038864,11]
[423616053,1780260659000,-2000.0,0.00038899,14]
[423616054,1780260659000,-391.919495,0.000389,2]
[423616052,1780260659000,-621.0,0.00038884,14]
[423616049,1780260659000,-534.65,0.0003885,2]
[423616060,1780260659000,-636.09,0.000389,30]
[423616074,1780260659000,-2000.0,0.00038953,8]
[423616055,1780260659000,-325.535599,0.000389,2]
[423616064,1780260659000,-375.05,0.0003892,116]
[423616066,1780260659000,-2000.0,0.00038937,5]
[423616068,1780260659000,-629.45911,0.0003894,107]
[423616063,1780260659000,-2000.0,0.00038919,116]
[423616062,1780260659000,-9730.4267306,0.0003891,2]
[423616065,1780260659000,-151.0,0.00038937,14]
[423616059,1780260659000,-310.535595,0.000389,2]
[423616056,1780260659000,-310.535595,0.000389,2]
[423616057,1780260659000,-307.535595,0.000389,2]
[423616058,1780260659000,-313.535595,0.000389,2]
[423616061,1780260659000,-555.0,0.00038907,10]
[423616121,1780260660000,-151.0,0.00039122,30]
[423616122,1780260660000,-1398.231395,0.00039122,30]
[423616125,1780260660000,-1398.231395,0.00039122,30]
[423616123,1780260660000,-1398.231395,0.00039122,30]
[423616127,1780260660000,-293.065152,0.00039122,30]
[423616124,1780260660000,-1398.231395,0.00039122,30]
[423616126,1780260660000,-151.0,0.00039122,30]
[423616128,1780260660000,-236.4797,0.00039122,30]
[423616129,1780260660000,-245.517686,0.00039122,30]
[423616119,1780260660000,-2131.9530001,0.00039122,2]
[423616135,1780260660000,-151.0,0.00039122,30]
[423616133,1780260660000,-566.992871,0.00039122,30]
[423616132,1780260660000,-566.992871,0.00039122,30]
[423616134,1780260660000,-566.992871,0.00039122,30]
[423616137,1780260660000,-151.0,0.00039122,30]
[423616131,1780260660000,-566.992871,0.00039122,30]
[423616130,1780260660000,-206.6698,0.00039122,30]
[423616120,1780260660000,-1925645.9826616,0.00039122,2]
[423616104,1780260660000,-2420.64172213,0.00039075,11]
[423616115,1780260660000,-386.0,0.000391,2]
[423616136,1780260660000,-151.0,0.00039122,30]
[423616100,1780260660000,-386.0,0.00039031,2]
[423616101,1780260660000,-350.0,0.00039033,7]
[423616103,1780260660000,-888.0,0.00039066,5]
[423616105,1780260660000,-386.0,0.00039081,2]
[423616106,1780260660000,-1448.16551452,0.0003909,2]
[423616102,1780260660000,-386.0,0.00039045,2]
[423616108,1780260660000,-1384.25626573,0.0003909,2]
[423616113,1780260660000,-351.372884,0.000391,2]
[423616107,1780260660000,-1501.96332813,0.0003909,2]
[423616110,1780260660000,-386.0,0.00039099,2]
[423616109,1780260660000,-1422.52173165,0.0003909,2]
[423616112,1780260660000,-174.186441,0.000391,2]
[423616111,1780260660000,-253.53307865,0.00039099,2]
[423616116,1780260660000,-2000.0,0.00039107,11]
[423616118,1780260660000,-2791.15203548,0.00039112,2]
[423616114,1780260660000,-345.372883,0.000391,2]
[423616117,1780260660000,-273.05167002,0.00039107,120]
[423616140,1780260660000,-151.0,0.00039122,30]
[423616138,1780260660000,-198.455501,0.00039122,30]
[423616146,1780260660000,-151.0,0.00039122,30]
[423616162,1780260660000,-500.0,0.00039122,15]
[423616163,1780260660000,-500.0,0.00039122,15]
[423616165,1780260660000,-500.0,0.00039122,15]
[423616167,1780260660000,-500.0,0.00039122,15]
[423616168,1780260660000,-500.0,0.00039122,15]
[423616172,1780260660000,-500.0,0.00039122,15]
[423616171,1780260660000,-500.0,0.00039122,15]
[423616164,1780260660000,-500.0,0.00039122,15]
[423616169,1780260660000,-500.0,0.00039122,15]
[423616170,1780260660000,-500.0,0.00039122,15]
[423616174,1780260660000,-500.0,0.00039122,15]
[423616175,1780260660000,-500.0,0.00039122,15]
[423616176,1780260660000,-500.0,0.00039122,15]
[423616177,1780260660000,-500.0,0.00039122,15]
[423616178,1780260660000,-500.0,0.00039122,15]
[423616139,1780260660000,-151.0,0.00039122,30]
[423616173,1780260660000,-500.0,0.00039122,15]
[423616159,1780260660000,-500.0,0.00039122,15]
[423616166,1780260660000,-500.0,0.00039122,15]
[423616161,1780260660000,-500.0,0.00039122,15]
[423616145,1780260660000,-151.0,0.00039122,30]
[423616160,1780260660000,-500.0,0.00039122,15]
[423616144,1780260660000,-151.0,0.00039122,30]
[423616143,1780260660000,-151.0,0.00039122,30]
[423616141,1780260660000,-151.0,0.00039122,30]
[423616148,1780260660000,-151.686969,0.00039122,2]
[423616150,1780260660000,-151.0,0.00039122,30]
[423616149,1780260660000,-215.309514,0.00039122,30]
[423616142,1780260660000,-151.0,0.00039122,30]
[423616151,1780260660000,-151.0,0.00039122,20]
[423616152,1780260660000,-500.0,0.00039122,15]
[423616154,1780260660000,-500.0,0.00039122,15]
[423616153,1780260660000,-500.0,0.00039122,15]
[423616155,1780260660000,-500.0,0.00039122,15]
[423616156,1780260660000,-500.0,0.00039122,15]
[423616147,1780260660000,-199.470396,0.00039122,30]
[423616157,1780260660000,-500.0,0.00039122,15]
[423616158,1780260660000,-500.0,0.00039122,15]
[423616210,1780260661000,-748.420268,0.00039122,30]
[423616221,1780260661000,-2312.479978,0.00039122,30]
[423616212,1780260661000,-151.0,0.00039122,30]
[423616207,1780260661000,-504.532511,0.00039122,15]
[423616201,1780260661000,-500.0,0.00039122,15]
[423616209,1780260661000,-748.420268,0.00039122,30]
[423616206,1780260661000,-500.0,0.00039122,15]
[423616211,1780260661000,-748.420268,0.00039122,30]
[423616208,1780260661000,-748.420268,0.00039122,30]
[423616213,1780260661000,-151.0,0.00039122,30]
[423616226,1780260661000,-1535.407751,0.00039122,30]
[423616220,1780260661000,-2440.971886,0.00039122,30]
[423616219,1780260661000,-2312.479978,0.00039122,30]
[423616216,1780260661000,-2440.971886,0.00039122,30]
[423616215,1780260661000,-234.047279,0.00039122,30]
[423616217,1780260661000,-2440.971886,0.00039122,30]
[423616218,1780260661000,-2440.971886,0.00039122,30]
[423616223,1780260661000,-2312.479978,0.00039122,30]
[423616224,1780260661000,-1535.407751,0.00039122,30]
[423616232,1780260661000,-197.031474,0.00039122,30]
[423616205,1780260661000,-500.0,0.00039122,15]
[423616214,1780260661000,-151.0,0.00039122,30]
[423616204,1780260661000,-500.0,0.00039122,15]
[423616184,1780260661000,-500.0,0.00039122,15]
[423616202,1780260661000,-500.0,0.00039122,15]
[423616222,1780260661000,-2312.479978,0.00039122,30]
[423616181,1780260661000,-500.0,0.00039122,15]
[423616179,1780260661000,-500.0,0.00039122,15]
[423616180,1780260661000,-500.0,0.00039122,15]
[423616183,1780260661000,-500.0,0.00039122,15]
[423616186,1780260661000,-500.0,0.00039122,15]
[423616187,1780260661000,-500.0,0.00039122,15]
[423616185,1780260661000,-500.0,0.00039122,15]
[423616188,1780260661000,-500.0,0.00039122,15]
[423616182,1780260661000,-500.0,0.00039122,15]
[423616203,1780260661000,-500.0,0.00039122,15]
[423616189,1780260661000,-500.0,0.00039122,15]
[423616190,1780260661000,-500.0,0.00039122,15]
[423616195,1780260661000,-500.0,0.00039122,15]
[423616196,1780260661000,-500.0,0.00039122,15]
[423616193,1780260661000,-500.0,0.00039122,15]
[423616200,1780260661000,-500.0,0.00039122,15]
[423616194,1780260661000,-500.0,0.00039122,15]
[423616192,1780260661000,-500.0,0.00039122,15]
[423616199,1780260661000,-500.0,0.00039122,15]
[423616198,1780260661000,-500.0,0.00039122,15]
[423616197,1780260661000,-500.0,0.00039122,15]
[423616191,1780260661000,-500.0,0.00039122,15]
[423616233,1780260661000,-197.031474,0.00039122,30]
[423616268,1780260661000,-714.730602,0.00039122,30]
[423616225,1780260661000,-843.767474,0.00039122,30]
[423616253,1780260661000,-197.93553,0.00039122,30]
[423616255,1780260661000,-197.93553,0.00039122,30]
[423616254,1780260661000,-751.372064,0.00039122,30]
[423616260,1780260661000,-151.0,0.00039122,30]
[423616261,1780260661000,-151.0,0.00039122,30]
[423616269,1780260661000,-151.0,0.00039122,30]
[423616259,1780260661000,-158.395691,0.00039122,30]
[423616276,1780260661000,-151.0,0.00039122,30]
[423616262,1780260661000,-151.0,0.00039122,30]
[423616264,1780260661000,-229.859367,0.00039122,30]
[423616263,1780260661000,-151.0,0.00039122,30]
[423616267,1780260661000,-151.0,0.00039122,30]
[423616266,1780260661000,-714.730602,0.00039122,30]
[423616271,1780260661000,-714.730602,0.00039122,30]
[423616270,1780260661000,-714.730602,0.00039122,30]
[423616275,1780260661000,-965.125358,0.00039122,30]
[423616277,1780260661000,-228.649642,0.00039122,30]
[423616272,1780260661000,-965.125358,0.00039122,30]
[423616273,1780260661000,-965.125358,0.00039122,30]
[423616274,1780260661000,-965.125358,0.00039122,30]
[423616228,1780260661000,-1535.407751,0.00039122,30]
[423616249,1780260661000,-311.217823,0.00039122,30]
[423616251,1780260661000,-151.0,0.00039122,30]
[423616265,1780260661000,-151.0,0.00039122,30]
[423616250,1780260661000,-751.372064,0.00039122,30]
[423616252,1780260661000,-751.372064,0.00039122,30]
[423616231,1780260661000,-843.767474,0.00039122,30]
[423616230,1780260661000,-1535.407751,0.00039122,30]
[423616227,1780260661000,-843.767474,0.00039122,30]
[423616229,1780260661000,-843.767474,0.00039122,30]
[423616238,1780260661000,-389.761139,0.00039122,30]
[423616237,1780260661000,-198.808524,0.00039122,30]
[423616236,1780260661000,-197.031474,0.00039122,30]
[423616244,1780260661000,-311.217823,0.00039122,30]
[423616241,1780260661000,-151.0,0.00039122,30]
[423616235,1780260661000,-389.761139,0.00039122,30]
[423616234,1780260661000,-197.031474,0.00039122,30]
[423616245,1780260661000,-151.0,0.00039122,30]
[423616239,1780260661000,-151.0,0.00039122,30]
[423616242,1780260661000,-389.761139,0.00039122,30]
[423616243,1780260661000,-151.0,0.00039122,30]
[423616246,1780260661000,-311.217823,0.00039122,30]
[423616258,1780260661000,-197.93553,0.00039122,30]
[423616256,1780260661000,-751.372064,0.00039122,30]
[423616248,1780260661000,-311.217823,0.00039122,30]
[423616247,1780260661000,-151.0,0.00039122,30]
[423616240,1780260661000,-389.761139,0.00039122,30]
[423616257,1780260661000,-197.93553,0.00039122,30]
[423616322,1780260662000,-166.665232,0.00039122,30]
[423616321,1780260662000,-151.0,0.00039122,30]
[423616323,1780260662000,-151.0,0.00039122,30]
[423616317,1780260662000,-166.665232,0.00039122,30]
[423616308,1780260662000,-170.240989,0.00039122,30]
[423616307,1780260662000,-151.0,0.00039122,30]
[423616311,1780260662000,-151.0,0.00039122,15]
[423616312,1780260662000,-151.0,0.00039122,30]
[423616313,1780260662000,-151.0,0.00039122,30]
[423616310,1780260662000,-151.0,0.00039122,30]
[423616318,1780260662000,-151.0,0.00039122,30]
[423616315,1780260662000,-166.665232,0.00039122,30]
[423616320,1780260662000,-151.0,0.00039122,30]
[423616331,1780260662000,-151.0,0.00039122,30]
[423616325,1780260662000,-151.0,0.00039122,30]
[423616327,1780260662000,-1412.603045,0.00039122,7]
[423616319,1780260662000,-166.665232,0.00039122,30]
[423616324,1780260662000,-151.0,0.00039122,30]
[423616328,1780260662000,-1412.603045,0.00039122,7]
[423616329,1780260662000,-1412.603045,0.00039122,7]
[423616330,1780260662000,-151.0,0.00039122,30]
[423616334,1780260662000,-151.0,0.00039122,30]
[423616342,1780260662000,-319.94370205,0.00039136,2]
[423616332,1780260662000,-151.0,0.00039122,30]
[423616335,1780260662000,-151.0,0.00039122,30]
[423616309,1780260662000,-151.0,0.00039122,30]
[423616326,1780260662000,-1412.603045,0.00039122,7]
[423616314,1780260662000,-151.0,0.00039122,15]
[423616292,1780260662000,-1469.428798,0.00039122,30]
[423616316,1780260662000,-151.0,0.00039122,15]
[423616279,1780260662000,-151.0,0.00039122,30]
[423616278,1780260662000,-228.649642,0.00039122,30]
[423616280,1780260662000,-228.649642,0.00039122,30]
[423616282,1780260662000,-228.649642,0.00039122,30]
[423616290,1780260662000,-1067.568537,0.00039122,30]
[423616291,1780260662000,-151.0,0.00039122,30]
[423616341,1780260662000,-638.091163,0.00039122,30]
[423616281,1780260662000,-151.0,0.00039122,30]
[423616283,1780260662000,-1067.568537,0.00039122,30]
[423616284,1780260662000,-151.0,0.00039122,30]
[423616285,1780260662000,-1469.428798,0.00039122,30]
[423616286,1780260662000,-1067.568537,0.00039122,30]
[423616287,1780260662000,-151.0,0.00039122,30]
[423616305,1780260662000,-170.240989,0.00039122,30]
[423616288,1780260662000,-301.996872,0.00039122,30]
[423616293,1780260662000,-1067.568537,0.00039122,30]
[423616296,1780260662000,-175.758403,0.00039122,30]
[423616295,1780260662000,-175.758403,0.00039122,30]
[423616297,1780260662000,-175.758403,0.00039122,30]
[423616304,1780260662000,-172.154342,0.00039122,30]
[423616294,1780260662000,-1469.428798,0.00039122,30]
[423616299,1780260662000,-265.979752,0.00039122,30]
[423616302,1780260662000,-170.240989,0.00039122,30]
[423616300,1780260662000,-211.797013,0.00039122,30]
[423616298,1780260662000,-175.758403,0.00039122,30]
[423616303,1780260662000,-151.0,0.00039122,30]
[423616301,1780260662000,-170.240989,0.00039122,30]
[423616306,1780260662000,-151.0,0.00039122,30]
[423616289,1780260662000,-1469.428798,0.00039122,30]
[423616336,1780260662000,-453.541394,0.00039122,30]
[423616333,1780260662000,-151.0,0.00039122,30]
[423616338,1780260662000,-453.541394,0.00039122,30]
[423616370,1780260662000,-386.0,0.0003922,2]
[423616367,1780260662000,-163.0,0.0003921,120]
[423616378,1780260662000,-295.23856588,0.0003924,50]
[423616375,1780260662000,-200.0,0.0003924,50]
[423616376,1780260662000,-731.89793765,0.0003924,50]
[423616377,1780260662000,-500.0,0.0003924,50]
[423616384,1780260662000,-206.16125616,0.0003924,50]
[423616380,1780260662000,-554.85521661,0.0003924,35]
[423616391,1780260662000,-1191.11104074,0.00039241,30]
[423616379,1780260662000,-526.34906063,0.0003924,50]
[423616381,1780260662000,-159.00591841,0.0003924,50]
[423616382,1780260662000,-157.84224006,0.0003924,50]
[423616390,1780260662000,-578.20924308,0.00039241,30]
[423616374,1780260662000,-8711.34798982,0.0003924,50]
[423616388,1780260662000,-386.0,0.00039241,2]
[423616385,1780260662000,-2000.0,0.0003924,50]
[423616386,1780260662000,-2000.0,0.0003924,31]
[423616389,1780260662000,-607.76245751,0.00039241,30]
[423616387,1780260662000,-2000.0,0.0003924,35]
[423616392,1780260662000,-599.60298507,0.00039241,50]
[423616394,1780260662000,-1734.62772924,0.00039241,30]
[423616395,1780260662000,-621.78829552,0.00039241,35]
[423616396,1780260662000,-217.46363988,0.00039241,30]
[423616397,1780260662000,-8260.13072238,0.00039241,50]
[423616398,1780260662000,-200.0,0.00039241,30]
[423616337,1780260662000,-151.0,0.00039122,30]
[423616399,1780260662000,-644.79446245,0.00039241,31]
[423616400,1780260662000,-8565.75555911,0.00039241,35]
[423616383,1780260662000,-167.88477092,0.0003924,50]
[423616371,1780260662000,-386.0,0.00039224,2]
[423616393,1780260662000,-7965.41053267,0.00039241,30]
[423616373,1780260662000,-668.65185756,0.0003924,50]
[423616369,1780260662000,-163.0,0.0003921,120]
[423616339,1780260662000,-453.541394,0.00039122,30]
[423616343,1780260662000,-386.0,0.0003914,2]
[423616344,1780260662000,-1000.0,0.00039142,90]
[423616345,1780260662000,-386.0,0.00039145,2]
[423616352,1780260662000,-550.8,0.00039199,120]
[423616350,1780260662000,-37480.1468361,0.00039183,2]
[423616351,1780260662000,-1989.08,0.00039199,120]
[423616349,1780260662000,-247924.0287906,0.00039183,2]
[423616353,1780260662000,-2000.0,0.00039199,39]
[423616346,1780260662000,-386.0,0.00039149,2]
[423616347,1780260662000,-386.0,0.00039176,2]
[423616348,1780260662000,-480.54367651,0.00039178,14]
[423616356,1780260662000,-2000.0,0.000392,2]
[423616340,1780260662000,-453.541394,0.00039122,30]
[423616354,1780260662000,-534.65,0.00039199,2]
[423616355,1780260662000,-33237.5546,0.000392,2]
[423616362,1780260662000,-11347.38968608,0.000392,2]
[423616364,1780260662000,-200.0,0.000392,18]
[423616359,1780260662000,-10294.9525,0.000392,2]
[423616366,1780260662000,-1401.48309954,0.000392,2]
[423616372,1780260662000,-386.0,0.00039229,2]
[423616363,1780260662000,-317.04474011,0.000392,2]
[423616365,1780260662000,-3729.7594561,0.000392,2]
[423616361,1780260662000,-194.674,0.000392,39]
[423616368,1780260662000,-163.0,0.0003921,120]
[423616357,1780260662000,-5000.0,0.000392,120]
[423616360,1780260662000,-152.0,0.000392,120]
[423616358,1780260662000,-245.82,0.000392,16]
[423616425,1780260663000,-644.79446245,0.00039241,31]
[423616440,1780260663000,-168.38880562,0.0003926,30]
[423616429,1780260663000,-151.0,0.00039241,35]
[423616432,1780260663000,-257.16610905,0.00039241,30]
[423616437,1780260663000,-194.72792766,0.00039241,31]
[423616433,1780260663000,-151.0,0.00039241,35]
[423616434,1780260663000,-187.78006524,0.00039241,35]
[423616435,1780260663000,-151.0,0.00039241,31]
[423616436,1780260663000,-151.0,0.00039241,31]
[423616439,1780260663000,-386.0,0.00039245,2]
[423616438,1780260663000,-1000.0,0.00039244,120]
[423616444,1780260663000,-1148.61238259,0.0003926,30]
[423616441,1780260663000,-691.39774486,0.0003926,30]
[423616443,1780260663000,-158.93580664,0.0003926,30]
[423616446,1780260663000,-7681.20591386,0.0003926,30]
[423616453,1780260663000,-152.0,0.0003926,30]
[423616445,1780260663000,-1672.7364795,0.0003926,30]
[423616454,1780260663000,-500.0,0.0003926,30]
[423616455,1780260663000,-151.0,0.0003926,30]
[423616456,1780260663000,-151.0,0.0003926,30]
[423616447,1780260663000,-168.3888056,0.0003926,30]
[423616451,1780260663000,-557.5788265,0.0003926,30]
[423616452,1780260663000,-500.0,0.0003926,30]
[423616428,1780260663000,-500.0,0.00039241,31]
[423616442,1780260663000,-557.5788265,0.0003926,30]
[423616426,1780260663000,-670.58624095,0.00039241,31]
[423616413,1780260663000,-152.0,0.00039241,50]
[423616427,1780260663000,-181.08010149,0.00039241,50]
[423616402,1780260663000,-8882.6885148,0.00039241,31]
[423616403,1780260663000,-200.0,0.00039241,35]
[423616405,1780260663000,-578.20924308,0.00039241,30]
[423616401,1780260663000,-200.0,0.00039241,50]
[423616404,1780260663000,-601.3376128,0.00039241,30]
[423616407,1780260663000,-152.0,0.00039241,30]
[423616418,1780260663000,-646.65982734,0.00039241,35]
[423616406,1780260663000,-500.0,0.00039241,30]
[423616411,1780260663000,-623.58710447,0.00039241,50]
[423616417,1780260663000,-621.78829552,0.00039241,35]
[423616412,1780260663000,-151.0,0.00039241,30]
[423616409,1780260663000,-500.0,0.00039241,30]
[423616410,1780260663000,-599.60298507,0.00039241,50]
[423616408,1780260663000,-200.0,0.00039241,31]
[423616416,1780260663000,-151.0,0.00039241,30]
[423616415,1780260663000,-500.0,0.00039241,50]
[423616448,1780260663000,-200.0,0.0003926,30]
[423616414,1780260663000,-500.0,0.00039241,50]
[423616419,1780260663000,-174.61919141,0.00039241,30]
[423616420,1780260663000,-500.0,0.00039241,35]
[423616430,1780260663000,-500.0,0.00039241,31]
[423616431,1780260663000,-152.0,0.00039241,31]
[423616422,1780260663000,-152.0,0.00039241,35]
[423616421,1780260663000,-151.0,0.00039241,50]
[423616423,1780260663000,-500.0,0.00039241,35]
[423616424,1780260663000,-151.0,0.00039241,50]
[423616449,1780260663000,-557.57882651,0.0003926,30]
[423616492,1780260663000,-2000.0,0.00039287,30]
[423616465,1780260663000,-152.75542359,0.0003927,2]
[423616496,1780260663000,-772.0,0.00039288,30]
[423616485,1780260663000,-500.0,0.00039287,30]
[423616487,1780260663000,-500.0,0.00039287,30]
[423616489,1780260663000,-151.0,0.00039287,30]
[423616493,1780260663000,-772.0,0.00039288,30]
[423616488,1780260663000,-151.0,0.00039287,30]
[423616486,1780260663000,-274.93219584,0.00039287,30]
[423616490,1780260663000,-162.380719,0.00039287,30]
[423616491,1780260663000,-200.0,0.00039287,30]
[423616498,1780260663000,-772.0,0.00039288,30]
[423616499,1780260663000,-772.0,0.00039288,30]
[423616508,1780260663000,-1555.5,0.00039288,30]
[423616509,1780260663000,-518.5,0.00039288,30]
[423616501,1780260663000,-772.0,0.00039288,30]
[423616505,1780260663000,-156.587,0.00039288,30]
[423616502,1780260663000,-772.0,0.00039288,30]
[423616503,1780260663000,-772.0,0.00039288,30]
[423616507,1780260663000,-642.94,0.00039288,30]
[423616504,1780260663000,-772.0,0.00039288,30]
[423616500,1780260663000,-772.0,0.00039288,30]
[423616506,1780260663000,-1025.38131837,0.00039288,30]
[423616511,1780260663000,-151.0,0.00039288,30]
[423616521,1780260663000,-260.287,0.00039288,30]
[423616522,1780260663000,-151.0,0.00039288,30]
[423616450,1780260663000,-579.88197956,0.0003926,30]
[423616495,1780260663000,-772.0,0.00039288,30]
[423616483,1780260663000,-537.6845,0.00039287,30]
[423616497,1780260663000,-772.0,0.00039288,30]
[423616484,1780260663000,-152.0,0.00039287,30]
[423616494,1780260663000,-772.0,0.00039288,30]
[423616458,1780260663000,-200.0,0.0003926,30]
[423616467,1780260663000,-300.22473343,0.0003927,2]
[423616466,1780260663000,-250.0,0.0003927,2]